fUSD/lending_fUSD_20250308
["ID","MTS","AMOUNT","RATE_DAILY","PERIOD"]
[355673404,1741451453402,-500.0,9.315e-05,2]
[355673405,1741451453412,-500.0,9.315e-05,2]
[355673406,1741451453421,-500.0,9.315e-05,2]
[355673407,1741451453431,-768.45,9.315e-05,2]
[355673408,1741451453440,-500.0,9.315e-05,2]
[355673409,1741451453450,-561.25,9.315e-05,2]
[355673410,1741451453460,-500.0,9.315e-05,2]
[355673411,1741451453469,-539.97,9.315e-05,2]
[355673412,1741451453479,-546.55,9.315e-05,2]
[355673413,1741451453488,-500.0,9.315e-05,2]
[355673414,1741451453497,-500.0,9.315e-05,2]
[355673415,1741451453507,-500.0,9.315e-05,2]
[355673416,1741451453516,-646.68,9.315e-05,2]
[355673417,1741451453527,-536.39,9.315e-05,2]
[355673418,1741451453536,-839.06,9.315e-05,2]
[355673419,1741451453545,-500.0,9.315e-05,2]
[355673420,1741451453555,-500.0,9.315e-05,2]
[355673421,1741451453564,-500.0,9.315e-05,2]
[355673422,1741451453573,-500.0,9.315e-05,2]
[355673423,1741451453583,-531.11,9.315e-05,2]
[355673424,1741451453593,-500.0,9.315e-05,2]
[355673425,1741451453603,-793.82,9.315e-05,2]
[355673426,1741451453613,-500.0,9.315e-05,2]
[355673427,1741451453623,-500.0,9.315e-05,2]
[355673428,1741451453632,-500.0,9.315e-05,2]
[355673429,1741451453642,-500.0,9.315e-05,2]
[355673430,1741451453651,-500.0,9.315e-05,2]
[355673431,1741451453662,-500.0,9.315e-05,2]
[355673432,1741451453674,-543.53,9.315e-05,2]
[355673433,1741451453683,-668.88,9.315e-05,2]
[355673434,1741451453693,-577.31,9.315e-05,2]
[355673435,1741451453703,-500.0,9.315e-05,2]
[355673436,1741451453714,-500.0,9.315e-05,2]
[355673437,1741451453723,-500.0,9.315e-05,2]
[355673438,1741451453733,-500.0,9.315e-05,2]
[355673439,1741451453743,-500.0,9.315e-05,2]
[355673440,1741451453754,-601.95,9.315e-05,2]
[355673441,1741451453764,-742.56,9.315e-05,2]
[355673442,1741451453774,-500.0,9.315e-05,2]
[355673443,1741451453784,-532.68,9.315e-05,2]
[355673444,1741451453794,-500.0,9.315e-05,2]
[355673445,1741451453804,-807.54,9.315e-05,2]
[355673446,1741451453814,-500.0,9.315e-05,2]
[355673447,1741451453823,-393.282689,9.315e-05,2]
[355673448,1741451453833,-922.48,9.315e-05,2]
[355673449,1741451453843,-552.31,9.315e-05,2]
[355673450,1741451453852,-585.707846,9.315e-05,2]
[355673451,1741451453862,-500.0,9.315e-05,2]
[355673452,1741451453871,-679.49,9.315e-05,2]
[355673453,1741451453881,-500.0,9.315e-05,2]
[355673454,1741451453891,-864.87,9.315e-05,2]
[355673455,1741451453900,-1001.97,9.315e-05,2]
[355673456,1741451453910,-500.0,9.315e-05,2]
[355673457,1741451453919,-567.04,9.315e-05,2]
[355673458,1741451453929,-403.60462417,9.315e-05,2]
[355673459,1741451453938,-834.37,9.315e-05,2]
[355673460,1741451453947,-500.0,9.315e-05,2]
[355673461,1741451453956,-860.21,9.315e-05,2]
[355673462,1741451453966,-1049.79,9.315e-05,2]
[355673463,1741451453975,-500.0,9.315e-05,2]
[355673464,1741451453984,-859.81,9.315e-05,2]
[355673465,1741451453994,-500.0,9.315e-05,2]
[355673466,1741451454004,-1000.46,9.315e-05,2]
[355673467,1741451454014,-500.0,9.315e-05,2]
[355673468,1741451454023,-608.51,9.315e-05,2]
[355673469,1741451454032,-1201.81,9.315e-05,2]
[355673470,1741451454042,-500.0,9.315e-05,2]
[355673471,1741451454051,-976.28,9.315e-05,2]
[355673472,1741451454060,-500.0,9.315e-05,2]
[355673473,1741451454070,-500.0,9.315e-05,2]
[355673474,1741451454079,-500.0,9.315e-05,2]
[355673475,1741451454089,-676.23,9.315e-05,2]
[355673476,1741451454099,-500.0,9.315e-05,2]
[355673477,1741451454108,-500.0,9.315e-05,2]
[355673478,1741451454118,-1192.68,9.315e-05,2]
[355673479,1741451454129,-528.52,9.315e-05,2]
[355673480,1741451454138,-500.0,9.315e-05,2]
[355673481,1741451454149,-500.0,9.315e-05,2]
[355673482,1741451454159,-628.26,9.315e-05,2]
[355673483,1741451454168,-972.3,9.315e-05,2]
[355673484,1741451454178,-1006.07,9.315e-05,2]
[355673485,1741451454187,-923.34,9.315e-05,2]
[355673486,1741451454197,-500.0,9.315e-05,2]
[355673487,1741451454207,-764.96,9.315e-05,2]
[355673488,1741451454216,-500.0,9.315e-05,2]
[355673489,1741451454225,-564.81,9.315e-05,2]
[355673490,1741451454235,-565.59,9.315e-05,2]
[355673491,1741451454245,-930.15,9.315e-05,2]
[355673492,1741451454255,-633.41,9.315e-05,2]
[355673493,1741451454264,-594.03,9.315e-05,2]
[355673494,1741451454274,-1121.78,9.315e-05,2]
[355673495,1741451454284,-864.36,9.315e-05,2]
[355673496,1741451454293,-500.0,9.315e-05,2]
[355673497,1741451454303,-500.0,9.315e-05,2]
[355673498,1741451454312,-773.96,9.315e-05,2]
[355673499,1741451454322,-603.49,9.315e-05,2]
[355673500,1741451454331,-9453.73,9.315e-05,2]
[355673501,1741451454340,-627.02,9.315e-05,2]
[355673502,1741451454350,-594.4,9.315e-05,2]
[355673503,1741451454359,-1209.92,9.315e-05,2]
[355673504,1741451454368,-4992.78,9.315e-05,2]
[355673505,1741451454379,-855.4,9.315e-05,2]
[355673506,1741451454388,-1003.48,9.315e-05,2]
[355673507,1741451454449,-1041.41,9.315e-05,2]
[355673508,1741451454459,-879.88,9.315e-05,2]
[355673509,1741451454467,-2121.73,9.315e-05,2]
[355673510,1741451454477,-1387.09,9.315e-05,2]
[355673511,1741451454487,-652.26,9.315e-05,2]
[355673512,1741451454496,-2387.01,9.315e-05,2]
[355673513,1741451454506,-644.99,9.315e-05,2]
[355673514,1741451454515,-500.0,9.315e-05,2]
[355673515,1741451454524,-1755.99,9.315e-05,2]
[355673516,1741451454533,-2411.52,9.315e-05,2]
[355673517,1741451454542,-1606.44,9.315e-05,2]
[355673518,1741451454552,-500.0,9.315e-05,2]
[355673519,1741451454562,-1898.02,9.315e-05,2]
[355673520,1741451454571,-1442.37,9.315e-05,2]
[355673521,1741451454580,-1615.13,9.315e-05,2]
[355673522,1741451454590,-786.54,9.315e-05,2]
[355673523,1741451454600,-1357.3,9.315e-05,2]
[355673524,1741451454609,-1347.66,9.315e-05,2]
[355673525,1741451454618,-1657.53,9.315e-05,2]
[355673526,1741451454629,-4139.0,9.315e-05,2]
[355673527,1741451454639,-500.0,9.315e-05,2]
[355673528,1741451454648,-785.85,9.315e-05,2]
[355673529,1741451454658,-631.73,9.315e-05,2]
[355673530,1741451454668,-1497.11,9.315e-05,2]
[355673531,1741451454680,-500.0,9.315e-05,2]
[355673532,1741451454689,-2769.7,9.315e-05,2]
[355673533,1741451454698,-500.0,9.315e-05,2]
[355673534,1741451454708,-2984.49,9.315e-05,2]
[355673535,1741451454718,-867.84,9.315e-05,2]
[355673536,1741451454727,-500.0,9.315e-05,2]
[355673537,1741451454736,-1313.55,9.315e-05,2]
[355673538,1741451454747,-2262.85,9.315e-05,2]
[355673539,1741451454757,-6133.09,9.315e-05,2]
[355673540,1741451454766,-1595.58,9.315e-05,2]
[355673541,1741451454776,-1157.52,9.315e-05,2]
[355673542,1741451454786,-5995.75,9.315e-05,2]
[355673543,1741451454796,-752.18,9.315e-05,2]
[355673544,1741451454806,-1037.89,9.315e-05,2]
[355673545,1741451454816,-1319.49,9.315e-05,2]
[355673546,1741451454826,-2879.6,9.315e-05,2]
[355673547,1741451454836,-778.74,9.315e-05,2]
[355673548,1741451454846,-6919.1,9.315e-05,2]
[355673549,1741451454856,-1075.32,9.315e-05,2]
[355673550,1741451454865,-1222.18,9.315e-05,2]
[355673551,1741451454875,-567.75,9.315e-05,2]
[355673552,1741451454885,-2235.53,9.315e-05,2]
[355673553,1741451454894,-572.79,9.315e-05,2]
[355673554,1741451454903,-2152.71,9.315e-05,2]
[355673555,1741451454912,-1166.49,9.315e-05,2]
[355673556,1741451454922,-872.98,9.315e-05,2]
[355673557,1741451454932,-2187.41,9.315e-05,2]
[355673558,1741451454941,-1382.87,9.315e-05,2]
[355673559,1741451454950,-747.04,9.315e-05,2]
[355673560,1741451454960,-500.0,9.315e-05,2]
[355673561,1741451454969,-1474.93,9.315e-05,2]
[355673562,1741451454981,-12011.57,9.315e-05,2]
[355673563,1741451454994,-604.0,9.315e-05,2]
[355673564,1741451455004,-2171.47,9.315e-05,2]
[355673565,1741451455013,-887.2,9.315e-05,2]
[355673566,1741451455023,-789.79,9.315e-05,2]
[355673567,1741451455032,-500.0,9.315e-05,2]
[355673568,1741451455042,-1286.66,9.315e-05,2]
[355673569,1741451455051,-2756.22,9.315e-05,2]
[355673570,1741451455061,-3089.68,9.315e-05,2]
[355673571,1741451455070,-1257.23,9.315e-05,2]
[355673572,1741451455080,-1805.35,9.315e-05,2]
[355673573,1741451455090,-1011.66,9.315e-05,2]
[355673574,1741451455099,-935.65,9.315e-05,2]
[355673575,1741451455109,-1306.31,9.315e-05,2]
[355673576,1741451455118,-2989.51,9.315e-05,2]
[355673577,1741451455131,-2233.02,9.315e-05,2]
[355673578,1741451455140,-689.64,9.315e-05,2]
[355673579,1741451455150,-1722.74,9.315e-05,2]
[355673580,1741451455160,-1687.87,9.315e-05,2]
[355673581,1741451455169,-500.0,9.315e-05,2]
[355673582,1741451455180,-723.51,9.315e-05,2]
[355673583,1741451455190,-721.1,9.315e-05,2]
[355673584,1741451455199,-1813.66,9.315e-05,2]
[355673585,1741451455209,-3122.98,9.315e-05,2]
[355673586,1741451455219,-500.0,9.315e-05,2]
[355673587,1741451455228,-3325.61,9.315e-05,2]
[355673588,1741451455238,-883.29,9.315e-05,2]
[355673589,1741451455248,-2528.21,9.315e-05,2]
[355673590,1741451455257,-913.18,9.315e-05,2]
[355673591,1741451455267,-1264.6,9.315e-05,2]
[355673592,1741451455276,-620.61,9.315e-05,2]
[355673593,1741451455285,-2830.5,9.315e-05,2]
[355673594,1741451455295,-2363.22,9.315e-05,2]
[355673595,1741451455303,-2773.87,9.315e-05,2]
[355673596,1741451455313,-2181.61,9.315e-05,2]
[355673597,1741451455322,-1413.01,9.315e-05,2]
[355673598,1741451455332,-6293.62,9.315e-05,2]
[355673599,1741451455342,-942.29,9.315e-05,2]
[355673600,1741451455351,-5945.69,9.315e-05,2]
[355673601,1741451455361,-1229.87,9.315e-05,2]
[355673602,1741451455373,-500.0,9.315e-05,2]
[355673603,1741451455382,-11444.74,9.315e-05,2]
[355673604,1741451455392,-1402.52,9.315e-05,2]
[355673605,1741451455402,-500.0,9.315e-05,2]
[355673606,1741451455413,-5476.0,9.315e-05,2]
[355673607,1741451455423,-5354.48,9.315e-05,2]
[355673608,1741451455432,-1510.82,9.315e-05,2]
[355673609,1741451455442,-610.59,9.315e-05,2]
[355673610,1741451455452,-500.0,9.315e-05,2]
[355673611,1741451455461,-500.0,9.315e-05,2]
[355673612,1741451455471,-753.57,9.315e-05,2]
[355673613,1741451455482,-26516.81,9.315e-05,2]
[355673614,1741451455492,-3055.95,9.315e-05,2]
[355673615,1741451455502,-1942.47,9.315e-05,2]
[355673616,1741451455511,-5042.13,9.315e-05,2]
[355673617,1741451455521,-2040.87,9.315e-05,2]
[355673618,1741451455530,-500.0,9.315e-05,2]
[355673619,1741451455539,-1004.65,9.315e-05,2]
[355673620,1741451455549,-500.0,9.315e-05,2]
[355673621,1741451455558,-500.0,9.315e-05,2]
[355673622,1741451455568,-2132.5,9.315e-05,2]
[355673623,1741451455578,-715.95,9.315e-05,2]
[355673624,1741451455587,-500.0,9.315e-05,2]
[355673625,1741451455598,-500.0,9.315e-05,2]
[355673626,1741451455608,-669.10392312,9.344e-05,2]
[355673627,1741451455618,-2111.11099826,9.4e-05,3]
[355673628,1741451455629,-669.10392312,9.43e-05,2]
[355673629,1741451455638,-3085.518,9.5e-05,2]
[355673630,1741451455648,-172.1,9.5e-05,2]
[355673631,1741451455657,-2100.0,9.5e-05,3]
[355673632,1741451455667,-669.10392312,9.517e-05,2]
[355673633,1741451455680,-150.0,9.562e-05,7]
[355673634,1741451455689,-72450.0,9.57e-05,2]
[355673635,1741451455698,-469.22795867,9.588e-05,2]
[355673636,1741451455709,-500.0,9.588e-05,2]
[355673637,1741451455718,-500.0,9.588e-05,2]
[355673638,1741451455728,-500.0,9.588e-05,2]
[355673639,1741451455737,-500.0,9.588e-05,2]
[355673640,1741451455747,-500.0,9.588e-05,2]
[355673641,1741451455757,-500.0,9.588e-05,2]
[355673642,1741451455766,-500.0,9.588e-05,2]
[355673643,1741451455776,-500.0,9.588e-05,2]
[355673644,1741451455785,-500.0,9.588e-05,2]
[355673645,1741451455795,-500.0,9.588e-05,2]
[355673646,1741451455804,-500.0,9.588e-05,2]
[355673647,1741451455813,-500.0,9.588e-05,2]
[355673648,1741451455822,-500.0,9.588e-05,2]
[355673649,1741451455831,-500.0,9.588e-05,2]
[355673650,1741451455841,-500.0,9.588e-05,2]
[355673651,1741451455850,-500.0,9.588e-05,2]
[355673652,1741451455859,-500.0,9.588e-05,2]
[355673653,1741451455869,-500.0,9.588e-05,2]
[355673654,1741451455880,-500.0,9.588e-05,2]
[355673655,1741451455889,-500.0,9.588e-05,2]
[355673656,1741451455899,-516.47,9.588e-05,2]
[355673657,1741451455910,-500.0,9.588e-05,2]
[355673658,1741451455919,-500.0,9.588e-05,2]
[355673659,1741451455929,-515.54,9.588e-05,2]
[355673660,1741451455939,-500.0,9.588e-05,2]
[355673661,1741451455948,-500.0,9.588e-05,2]
[355673662,1741451455958,-500.0,9.588e-05,2]
[355673663,1741451455968,-470.15187479,9.588e-05,2]
[355673664,1741451455977,-500.0,9.588e-05,2]
[355673665,1741451455987,-500.0,9.588e-05,2]
[355673666,1741451455996,-500.0,9.588e-05,2]
[355673667,1741451456005,-500.0,9.588e-05,2]
[355673668,1741451456015,-500.0,9.588e-05,2]
[355673669,1741451456024,-500.0,9.588e-05,2]
[355673670,1741451456034,-503.04,9.588e-05,2]
[355673671,1741451456043,-500.0,9.588e-05,2]
[355673672,1741451456052,-500.0,9.588e-05,2]
[355673673,1741451456062,-500.0,9.588e-05,2]
[355673674,1741451456072,-500.0,9.588e-05,2]
[355673675,1741451456081,-500.0,9.588e-05,2]
[355673676,1741451456091,-500.0,9.588e-05,2]
[355673677,1741451456101,-500.0,9.588e-05,2]
[355673678,1741451456110,-500.0,9.588e-05,2]
[355673679,1741451456120,-500.0,9.588e-05,2]
[355673680,1741451456130,-500.0,9.588e-05,2]
[355673681,1741451456140,-500.0,9.588e-05,2]
[355673682,1741451456149,-500.0,9.588e-05,2]
[355673683,1741451456158,-500.0,9.588e-05,2]
[355673684,1741451456168,-500.0,9.588e-05,2]
[355673685,1741451456177,-500.0,9.588e-05,2]
[355673686,1741451456187,-1415.94,9.588e-05,2]
[355673687,1741451456196,-500.0,9.588e-05,2]
[355673688,1741451456206,-3456.85,9.588e-05,2]
[355673689,1741451456216,-18642.08,9.588e-05,2]
[355673690,1741451456226,-500.0,9.588e-05,2]
[355673691,1741451456236,-500.0,9.588e-05,2]
[355673692,1741451456246,-302.49246106,9.588e-05,2]
[355673693,1741451456255,-500.0,9.588e-05,2]
[355673694,1741451456264,-1926.7,9.588e-05,2]
[355673695,1741451456274,-500.0,9.588e-05,2]
[355673696,1741451456284,-1524.69,9.588e-05,2]
[355673697,1741451456293,-500.0,9.588e-05,2]
[355673698,1741451456303,-3210.16,9.588e-05,2]
[355673699,1741451456313,-1162.98,9.588e-05,2]
[355673700,1741451456323,-500.0,9.588e-05,2]
[355673701,1741451456333,-4438.78,9.588e-05,2]
[355673702,1741451456344,-500.0,9.588e-05,2]
[355673703,1741451456355,-500.0,9.588e-05,2]
[355673704,1741451456364,-3434.96,9.588e-05,2]
[355673705,1741451456374,-500.0,9.588e-05,2]
[355673706,1741451456384,-500.0,9.588e-05,2]
[355673707,1741451456393,-500.0,9.588e-05,2]
[355673708,1741451456403,-2478.27,9.588e-05,2]
[355673709,1741451456413,-500.0,9.588e-05,2]
[355673710,1741451456423,-500.0,9.588e-05,2]
[355673711,1741451456432,-597.79,9.588e-05,2]
[355673712,1741451456442,-500.0,9.588e-05,2]
[355673713,1741451456451,-500.0,9.588e-05,2]
[355673714,1741451456461,-3321.47,9.588e-05,2]
[355673715,1741451456470,-500.0,9.588e-05,2]
[355673716,1741451456480,-5913.05,9.588e-05,2]
[355673717,1741451456490,-500.0,9.588e-05,2]
[355673718,1741451456499,-500.0,9.588e-05,2]
[355673719,1741451456509,-2776.28,9.588e-05,2]
[355673720,1741451456519,-500.0,9.588e-05,2]
[355673721,1741451456528,-500.0,9.588e-05,2]
[355673722,1741451456538,-500.0,9.589e-05,2]
[355673723,1741451456548,-500.0,9.589e-05,2]
[355673724,1741451456558,-500.0,9.589e-05,2]
[355673725,1741451456567,-500.0,9.589e-05,2]
[355673726,1741451456576,-500.0,9.589e-05,2]
[355673727,1741451456586,-500.0,9.589e-05,2]
[355673728,1741451456595,-500.0,9.589e-05,2]
[355673729,1741451456605,-500.0,9.589e-05,2]
[355673730,1741451456615,-500.0,9.589e-05,2]
[355673731,1741451456624,-500.0,9.589e-05,2]
[355673732,1741451456632,-500.0,9.589e-05,2]
[355673733,1741451456640,-500.0,9.589e-05,2]
[355673734,1741451456649,-433.61016259,9.589e-05,2]
[355673735,1741451456658,-500.0,9.589e-05,2]
[355673736,1741451456666,-1116.68,9.589e-05,2]
[355673737,1741451456678,-500.0,9.589e-05,2]
[355673738,1741451456687,-573.32,9.589e-05,2]
[355673739,1741451456697,-585.74,9.589e-05,2]
[355673740,1741451456708,-672.36,9.589e-05,2]
[355673741,1741451456717,-500.0,9.589e-05,2]
[355673742,1741451456727,-500.0,9.589e-05,2]
[355673743,1741451456737,-500.0,9.589e-05,2]
[355673744,1741451456747,-500.0,9.589e-05,2]
[355673745,1741451456757,-768.45,9.589e-05,2]
[355673746,1741451456767,-500.0,9.589e-05,2]
[355673747,1741451456777,-561.25,9.589e-05,2]
[355673748,1741451456787,-500.0,9.589e-05,2]
[355673749,1741451456797,-539.97,9.589e-05,2]
[355673750,1741451456807,-546.55,9.589e-05,2]
[355673751,1741451456816,-500.0,9.589e-05,2]
[355673752,1741451456827,-500.0,9.589e-05,2]
[355673753,1741451456837,-500.0,9.589e-05,2]
[355673754,1741451456846,-646.68,9.589e-05,2]
[355673755,1741451456855,-536.39,9.589e-05,2]
[355673756,1741451456865,-839.06,9.589e-05,2]
[355673757,1741451456875,-500.0,9.589e-05,2]
[355673758,1741451456884,-500.0,9.589e-05,2]
[355673759,1741451456894,-500.0,9.589e-05,2]
[355673760,1741451456904,-500.0,9.589e-05,2]
[355673761,1741451456914,-531.11,9.589e-05,2]
[355673762,1741451456924,-500.0,9.589e-05,2]
[355673763,1741451456934,-793.82,9.589e-05,2]
[355673764,1741451456943,-500.0,9.589e-05,2]
[355673765,1741451456952,-500.0,9.589e-05,2]
[355673766,1741451456962,-500.0,9.589e-05,2]
[355673767,1741451456971,-500.0,9.589e-05,2]
[355673768,1741451456981,-500.0,9.589e-05,2]
[355673769,1741451456991,-500.0,9.589e-05,2]
[355673770,1741451457001,-543.53,9.589e-05,2]
[355673771,1741451457011,-668.88,9.589e-05,2]
[355673772,1741451457020,-577.31,9.589e-05,2]
[355673773,1741451457030,-500.0,9.589e-05,2]
[355673774,1741451457039,-500.0,9.589e-05,2]
[355673775,1741451457049,-500.0,9.589e-05,2]
[355673776,1741451457058,-500.0,9.589e-05,2]
[355673777,1741451457068,-500.0,9.589e-05,2]
[355673778,1741451457077,-601.95,9.589e-05,2]
[355673779,1741451457087,-500.0,9.589e-05,2]
[355673780,1741451457097,-742.56,9.589e-05,2]
[355673781,1741451457107,-532.68,9.589e-05,2]
[355673782,1741451457117,-500.0,9.589e-05,2]
[355673783,1741451457128,-807.54,9.589e-05,2]
[355673784,1741451457137,-500.0,9.589e-05,2]
[355673785,1741451457147,-393.282689,9.589e-05,2]
[355673786,1741451457157,-922.48,9.589e-05,2]
[355673787,1741451457167,-552.31,9.589e-05,2]
[355673788,1741451457177,-585.707846,9.589e-05,2]
[355673789,1741451457188,-500.0,9.589e-05,2]
[355673790,1741451457198,-679.49,9.589e-05,2]
[355673791,1741451457207,-500.0,9.589e-05,2]
[355673792,1741451457217,-864.87,9.589e-05,2]
[355673793,1741451457228,-1001.97,9.589e-05,2]
[355673794,1741451457237,-647.77075187,9.589e-05,2]
[355673795,1741451457247,-567.04,9.589e-05,2]
[355673796,1741451457257,-834.37,9.589e-05,2]
[355673797,1741451457267,-500.0,9.589e-05,2]
[355673798,1741451457276,-860.21,9.589e-05,2]
[355673799,1741451457286,-1049.79,9.589e-05,2]
[355673800,1741451457296,-500.0,9.589e-05,2]
[355673801,1741451457307,-859.81,9.589e-05,2]
[355673802,1741451457316,-500.0,9.589e-05,2]
[355673803,1741451457326,-1000.46,9.589e-05,2]
[355673804,1741451457336,-500.0,9.589e-05,2]
[355673805,1741451457346,-608.51,9.589e-05,2]
[355673806,1741451457356,-1201.81,9.589e-05,2]
[355673807,1741451457366,-500.0,9.589e-05,2]
[355673808,1741451457375,-976.28,9.589e-05,2]
[355673809,1741451457386,-500.0,9.589e-05,2]
[355673810,1741451457396,-500.0,9.589e-05,2]
[355673811,1741451457405,-500.0,9.589e-05,2]
[355673812,1741451457415,-676.23,9.589e-05,2]
[355673813,1741451457425,-500.0,9.589e-05,2]
[355673814,1741451457435,-500.0,9.589e-05,2]
[355673815,1741451457444,-1192.68,9.589e-05,2]
[355673816,1741451457454,-528.52,9.589e-05,2]
[355673817,1741451457464,-500.0,9.589e-05,2]
[355673818,1741451457474,-500.0,9.589e-05,2]
[355673819,1741451457485,-628.26,9.589e-05,2]
[355673820,1741451457494,-972.3,9.589e-05,2]
[355673821,1741451457504,-1006.07,9.589e-05,2]
[355673822,1741451457514,-923.34,9.589e-05,2]
[355673823,1741451457523,-500.0,9.589e-05,2]
[355673824,1741451457534,-764.96,9.589e-05,2]
[355673825,1741451457545,-500.0,9.589e-05,2]
[355673826,1741451457554,-565.59,9.589e-05,2]
[355673827,1741451457563,-564.81,9.589e-05,2]
[355673828,1741451457573,-930.15,9.589e-05,2]
[355673829,1741451457583,-633.41,9.589e-05,2]
[355673830,1741451457592,-594.03,9.589e-05,2]
[355673831,1741451457602,-1121.78,9.589e-05,2]
[355673832,1741451457611,-864.36,9.589e-05,2]
[355673833,1741451457621,-500.0,9.589e-05,2]
[355673834,1741451457632,-500.0,9.589e-05,2]
[355673835,1741451457641,-773.96,9.589e-05,2]
[355673836,1741451457651,-603.49,9.589e-05,2]
[355673837,1741451457661,-9453.73,9.589e-05,2]
[355673838,1741451457674,-627.02,9.589e-05,2]
[355673839,1741451457684,-594.4,9.589e-05,2]
[355673840,1741451457694,-4992.78,9.589e-05,2]
[355673841,1741451457703,-1209.92,9.589e-05,2]
[355673842,1741451457713,-855.4,9.589e-05,2]
[355673843,1741451457722,-1003.48,9.589e-05,2]
[355673844,1741451457733,-1041.41,9.589e-05,2]
[355673845,1741451457743,-879.88,9.589e-05,2]
[355673846,1741451457754,-2121.73,9.589e-05,2]
[355673847,1741451457764,-1387.09,9.589e-05,2]
[355673848,1741451457774,-652.26,9.589e-05,2]
[355673849,1741451457784,-2387.01,9.589e-05,2]
[355673850,1741451457793,-644.99,9.589e-05,2]
[355673851,1741451457803,-500.0,9.589e-05,2]
[355673852,1741451457813,-1755.99,9.589e-05,2]
[355673853,1741451457823,-2411.52,9.589e-05,2]
[355673854,1741451457833,-1606.44,9.589e-05,2]
[355673855,1741451457843,-500.0,9.589e-05,2]
[355673856,1741451457854,-1898.02,9.589e-05,2]
[355673857,1741451457864,-1442.37,9.589e-05,2]
[355673858,1741451457875,-1615.13,9.589e-05,2]
[355673859,1741451457884,-786.54,9.589e-05,2]
[355673860,1741451457894,-1357.3,9.589e-05,2]
[355673861,1741451457904,-1347.66,9.589e-05,2]
[355673862,1741451457914,-1657.53,9.589e-05,2]
[355673863,1741451457923,-4139.0,9.589e-05,2]
[355673864,1741451457933,-500.0,9.589e-05,2]
[355673865,1741451457943,-785.85,9.589e-05,2]
[355673866,1741451457952,-631.73,9.589e-05,2]
[355673867,1741451457963,-1497.11,9.589e-05,2]
[355673868,1741451457974,-500.0,9.589e-05,2]
[355673869,1741451457985,-2769.7,9.589e-05,2]
[355673870,1741451457995,-500.0,9.589e-05,2]
[355673871,1741451458006,-2984.49,9.589e-05,2]
[355673872,1741451458017,-867.84,9.589e-05,2]
[355673873,1741451458027,-500.0,9.589e-05,2]
[355673874,1741451458038,-1313.55,9.589e-05,2]
[355673875,1741451458048,-2262.85,9.589e-05,2]
[355673876,1741451458057,-6133.09,9.589e-05,2]
[355673877,1741451458067,-1595.58,9.589e-05,2]
[355673878,1741451458077,-1157.52,9.589e-05,2]
[355673879,1741451458087,-5995.75,9.589e-05,2]
[355673880,1741451458097,-752.18,9.589e-05,2]
[355673881,1741451458107,-1037.89,9.589e-05,2]
[355673882,1741451458117,-1319.49,9.589e-05,2]
[355673883,1741451458127,-2879.6,9.589e-05,2]
[355673884,1741451458137,-778.74,9.589e-05,2]
[355673885,1741451458147,-6919.1,9.589e-05,2]
[355673886,1741451458157,-1075.32,9.589e-05,2]
[355673887,1741451458167,-1222.18,9.589e-05,2]
[355673888,1741451458176,-567.75,9.589e-05,2]
[355673889,1741451458186,-2235.53,9.589e-05,2]
[355673890,1741451458196,-572.79,9.589e-05,2]
[355673891,1741451458206,-2152.71,9.589e-05,2]
[355673892,1741451458215,-1166.49,9.589e-05,2]
[355673893,1741451458225,-872.98,9.589e-05,2]
[355673894,1741451458235,-2187.41,9.589e-05,2]
[355673895,1741451458245,-1382.87,9.589e-05,2]
[355673896,1741451458254,-747.04,9.589e-05,2]
[355673897,1741451458264,-500.0,9.589e-05,2]
[355673898,1741451458274,-1474.93,9.589e-05,2]
[355673899,1741451458283,-12011.57,9.589e-05,2]
[355673900,1741451458293,-604.0,9.589e-05,2]
[355673901,1741451458303,-2171.47,9.589e-05,2]
[355673902,1741451458313,-887.2,9.589e-05,2]
[355673903,1741451458323,-789.79,9.589e-05,2]